fUST/lending_fUST_20250326
["ID","MTS","AMOUNT","RATE_DAILY","PERIOD"]
[356672953,1742940666913,-500.0,0.00012602,2]
[356672954,1742940666922,-500.0,0.00012602,2]
[356672955,1742940666932,-1309.59,0.00012602,2]
[356672956,1742940666942,-2068.14,0.00012602,2]
[356672957,1742940666951,-518.22021553,0.00012602,2]
[356672958,1742940666961,-500.0,0.00012602,2]
[356672959,1742940666971,-5178.43,0.00012602,2]
[356672960,1742940666981,-1828.29,0.00012602,2]
[356672961,1742940666990,-500.0,0.00012602,2]
[356672962,1742940667000,-366.41,0.00012602,2]
[356672963,1742940667010,-6147.84,0.00012602,2]
[356672964,1742940667019,-500.0,0.00012602,2]
[356672965,1742940667028,-500.0,0.00012602,2]
[356672966,1742940667038,-500.0,0.00012602,2]
[356672967,1742940667047,-2427.31,0.00012602,2]
[356672968,1742940667057,-500.0,0.00012602,2]
[356672969,1742940667066,-517.57744102,0.00012602,2]
[356672970,1742940667076,-500.0,0.00012602,2]
[356672971,1742940667085,-500.0,0.00012602,2]
[356672972,1742940667095,-882.86,0.00012602,2]
[356672973,1742940667105,-568.23,0.00012602,2]
[356672974,1742940667115,-500.0,0.00012602,2]
[356672975,1742940667125,-7679.91,0.00012602,2]
[356672976,1742940667135,-442.92,0.00012602,2]
[356672977,1742940667144,-504.33496452,0.00012602,2]
[356672978,1742940667154,-668.75,0.00012602,2]
[356672979,1742940667164,-1324.57,0.00012602,2]
[356672980,1742940667173,-500.0,0.00012602,2]
[356672981,1742940667182,-500.0,0.00012602,2]
[356672982,1742940667192,-500.0,0.00012602,2]
[356672983,1742940667201,-307.08,0.00012602,2]
[356672984,1742940667211,-500.0,0.00012602,2]
[356672985,1742940667220,-627.75522215,0.00012602,2]
[356672986,1742940667229,-3036.54,0.00012602,2]
[356672987,1742940667239,-500.0,0.00012602,2]
[356672988,1742940667248,-722.44,0.00012602,2]
[356672989,1742940667258,-500.0,0.00012602,2]
[356672990,1742940667267,-2355.41,0.00012602,2]
[356672991,1742940667277,-518.08,0.00012602,2]
[356672992,1742940667286,-500.0,0.00012602,2]
[356672993,1742940667296,-500.0,0.00012602,2]
[356672994,1742940667305,-660.47,0.00012602,2]
[356672995,1742940667314,-500.0,0.00012602,2]
[356672996,1742940667323,-481.78,0.00012602,2]
[356672997,1742940667332,-500.0,0.00012602,2]
[356672998,1742940667342,-500.0,0.00012602,2]
[356672999,1742940667351,-500.0,0.00012602,2]
[356673000,1742940667360,-500.0,0.00012602,2]
[356673001,1742940667370,-500.0,0.00012602,2]
[356673002,1742940667379,-153.0,0.00012603,2]
[356673003,1742940667389,-187.3769446,0.00012603,2]
[356673004,1742940667398,-153.0,0.00012603,2]
[356673005,1742940667408,-187.3769446,0.00012603,2]
[356673006,1742940667417,-153.0,0.00012603,2]
[356673007,1742940667426,-153.0,0.00012603,2]
[356673008,1742940667436,-153.0,0.00012603,2]
[356673009,1742940667445,-153.0,0.00012603,2]
[356673010,1742940667455,-153.0,0.00012603,2]
[356673011,1742940667464,-153.0,0.00012603,2]
[356673012,1742940667473,-163.9878933,0.00012603,2]
[356673013,1742940667483,-153.0,0.00012603,2]
[356673014,1742940667492,-153.0,0.00012603,2]
[356673015,1742940667502,-153.0,0.00012603,2]
[356673016,1742940667511,-153.0,0.00012603,2]
[356673017,1742940667520,-153.0,0.00012603,2]
[356673018,1742940667529,-153.0,0.00012603,2]
[356673019,1742940667538,-153.0,0.00012603,2]
[356673020,1742940667548,-153.0,0.00012603,2]
[356673021,1742940667557,-153.0,0.00012603,2]
[356673022,1742940667569,-153.0,0.00012603,2]
[356673023,1742940667579,-306.0,0.00012603,2]
[356673024,1742940667588,-472.42591634,0.00012609,2]
[356673025,1742940667598,-567.7667342,0.0001261,2]
[356673026,1742940667607,-410.01558519,0.0001263,2]
[356673027,1742940667616,-410.01558519,0.00012685,2]
[356673028,1742940667625,-410.01558519,0.00012767,2]
[356673029,1742940667635,-410.01558519,0.00012822,2]
[356673030,1742940667646,-500.0,0.00012876,2]
[356673031,1742940667655,-500.0,0.00012876,2]
[356673032,1742940667664,-500.0,0.00012876,2]
[356673033,1742940667673,-500.0,0.00012876,2]
[356673034,1742940667683,-170.55394352,0.00012876,2]
[356673035,1742940667692,-500.0,0.00012876,2]
[356673036,1742940667702,-500.0,0.00012876,2]
[356673037,1742940667712,-539.46919711,0.00012876,2]
[356673038,1742940667723,-501.64,0.00012876,2]
[356673039,1742940667732,-684.91,0.00012876,2]
[356673040,1742940667741,-500.0,0.00012876,2]
[356673041,1742940667751,-824.78,0.00012876,2]
[356673042,1742940667760,-898.44,0.00012876,2]
[356673043,1742940667769,-868.42,0.00012876,2]
[356673044,1742940667779,-886.5,0.00012876,2]
[356673045,1742940667788,-877.34,0.00012876,2]
[356673046,1742940667798,-1633.27,0.00012876,2]
[356673047,1742940667807,-871.35,0.00012876,2]
[356673048,1742940667816,-500.0,0.00012876,2]
[356673049,1742940667826,-500.0,0.00012876,2]
[356673050,1742940667836,-848.11,0.00012876,2]
[356673051,1742940667847,-711.15,0.00012876,2]
[356673052,1742940667858,-500.0,0.00012876,2]
[356673053,1742940667868,-169.845839,0.00012876,2]
[356673054,1742940667877,-500.0,0.00012876,2]
[356673055,1742940667887,-500.0,0.00012876,2]
[356673056,1742940667897,-169.845839,0.00012876,2]
[356673057,1742940667906,-500.0,0.00012876,2]
[356673058,1742940667917,-500.0,0.00012876,2]
[356673059,1742940667926,-500.0,0.00012876,2]
[356673060,1742940667936,-500.0,0.00012876,2]
[356673061,1742940667947,-500.0,0.00012876,2]
[356673062,1742940667957,-949.97,0.00012876,2]
[356673063,1742940667966,-309.35,0.00012876,2]
[356673064,1742940667976,-1437.06,0.00012876,2]
[356673065,1742940667986,-323.36,0.00012876,2]
[356673066,1742940667996,-531.88,0.00012876,2]
[356673067,1742940668005,-500.0,0.00012876,2]
[356673068,1742940668015,-500.0,0.00012876,2]
[356673069,1742940668024,-574.21,0.00012876,2]
[356673070,1742940668034,-975.56,0.00012876,2]
[356673071,1742940668044,-1592.05,0.00012876,2]
[356673072,1742940668054,-500.0,0.00012876,2]
[356673073,1742940668064,-500.0,0.00012876,2]
[356673074,1742940668073,-500.0,0.00012876,2]
[356673075,1742940668083,-500.0,0.00012876,2]
[356673076,1742940668094,-2306.34,0.00012876,2]
[356673077,1742940668104,-151.0,0.00012876,2]
[356673078,1742940668113,-280.951246,0.00012876,2]
[356673079,1742940668123,-500.0,0.00012876,2]
[356673080,1742940668132,-500.0,0.00012876,2]
[356673081,1742940668142,-500.0,0.00012876,2]
[356673082,1742940668151,-500.0,0.00012876,2]
[356673083,1742940668160,-671.72,0.00012876,2]
[356673084,1742940668170,-325.299698,0.00012876,2]
[356673085,1742940668180,-325.299698,0.00012876,2]
[356673086,1742940668191,-151.0,0.00012876,2]
[356673087,1742940668200,-500.0,0.00012876,2]
[356673088,1742940668210,-546.760311,0.00012876,2]
[356673089,1742940668219,-500.0,0.00012876,2]
[356673090,1742940668229,-500.0,0.00012876,2]
[356673091,1742940668239,-546.760311,0.00012876,2]
[356673092,1742940668249,-500.0,0.00012876,2]
[356673093,1742940668259,-500.0,0.00012876,2]
[356673094,1742940668269,-381.05,0.00012876,2]
[356673095,1742940668279,-487.36,0.00012876,2]
[356673096,1742940668288,-530.87,0.00012876,2]
[356673097,1742940668298,-500.0,0.00012876,2]
[356673098,1742940668307,-500.0,0.00012876,2]
[356673099,1742940668317,-511.2,0.00012876,2]
[356673100,1742940668326,-571.744593,0.00012876,2]
[356673101,1742940668336,-2358.577164,0.00012876,2]
[356673102,1742940668349,-571.74459,0.00012876,2]
[356673103,1742940668358,-2358.577167,0.00012876,2]
[356673104,1742940668368,-500.0,0.00012876,2]
[356673105,1742940668377,-987.75,0.00012876,2]
[356673106,1742940668386,-500.0,0.00012876,2]
[356673107,1742940668396,-773.2,0.00012876,2]
[356673108,1742940668406,-500.0,0.00012876,2]
[356673109,1742940668415,-519.65,0.00012876,2]
[356673110,1742940668424,-593.22,0.00012876,2]
[356673111,1742940668432,-500.0,0.00012876,2]
[356673112,1742940668441,-500.0,0.00012876,2]
[356673113,1742940668449,-500.0,0.00012876,2]
[356673114,1742940668458,-500.0,0.00012876,2]
[356673115,1742940668466,-500.0,0.00012876,2]
[356673116,1742940668475,-500.0,0.00012876,2]
[356673117,1742940668483,-500.0,0.00012876,2]
[356673118,1742940668492,-500.0,0.00012876,2]
[356673119,1742940668501,-500.0,0.00012876,2]
[356673120,1742940668511,-500.0,0.00012876,2]
[356673121,1742940668520,-375.34,0.00012876,2]
[356673122,1742940668529,-164.04,0.00012876,2]
[356673123,1742940668539,-500.0,0.00012876,2]
[356673124,1742940668548,-987.07,0.00012876,2]
[356673125,1742940668557,-500.0,0.00012876,2]
[356673126,1742940668567,-500.0,0.00012876,2]
[356673127,1742940668579,-500.0,0.00012876,2]
[356673128,1742940668589,-500.0,0.00012876,2]
[356673129,1742940668598,-436.02,0.00012876,2]
[356673130,1742940668608,-2588.72,0.00012876,2]
[356673131,1742940668618,-635.13,0.00012876,2]
[356673132,1742940668627,-500.0,0.00012876,2]
[356673133,1742940668636,-7574.04,0.00012876,2]
[356673134,1742940668647,-706.39,0.00012876,2]
[356673135,1742940668656,-919.95,0.00012876,2]
[356673136,1742940668665,-500.0,0.00012876,2]
[356673137,1742940668675,-500.0,0.00012876,2]
[356673138,1742940668684,-500.0,0.00012876,2]
[356673139,1742940668694,-835.22,0.00012876,2]
[356673140,1742940668703,-500.0,0.00012876,2]
[356673141,1742940668712,-500.0,0.00012876,2]
[356673142,1742940668722,-821.98,0.00012876,2]
[356673143,1742940668732,-175.27,0.00012876,2]
[356673144,1742940668741,-1269.14,0.00012876,2]
[356673145,1742940668750,-3195.43,0.00012876,2]
[356673146,1742940668759,-2353.49,0.00012876,2]
[356673147,1742940668769,-500.0,0.00012876,2]
[356673148,1742940668778,-4463.96,0.00012876,2]
[356673149,1742940668788,-712.38,0.00012876,2]
[356673150,1742940668904,-5474.58,0.00012876,2]
[356673151,1742940668915,-500.0,0.00012876,2]
[356673152,1742940668924,-5190.69,0.00012876,2]
[356673153,1742940668933,-500.0,0.00012876,2]
[356673154,1742940668943,-1492.31,0.00012876,2]
[356673155,1742940668952,-15419.73,0.00012876,2]
[356673156,1742940668962,-500.0,0.00012876,2]
[356673157,1742940668971,-318.37,0.00012876,2]
[356673158,1742940668981,-3644.62,0.00012876,2]
[356673159,1742940668990,-1533.82,0.00012876,2]
[356673160,1742940669000,-500.0,0.00012876,2]
[356673161,1742940669009,-500.0,0.00012876,2]
[356673162,1742940669019,-500.0,0.00012876,2]
[356673163,1742940669030,-3706.87,0.00012876,2]
[356673164,1742940669040,-500.0,0.00012876,2]
[356673165,1742940669052,-961.87,0.00012876,2]
[356673166,1742940669062,-1104.44,0.00012876,2]
[356673167,1742940669071,-579.63,0.00012876,2]
[356673168,1742940669081,-500.0,0.00012876,2]
[356673169,1742940669091,-2129.68,0.00012876,2]
[356673170,1742940669101,-7244.39,0.00012876,2]
[356673171,1742940669110,-500.0,0.00012876,2]
[356673172,1742940669120,-500.0,0.00012876,2]
[356673173,1742940669130,-9523.56,0.00012876,2]
[356673174,1742940669139,-500.0,0.00012876,2]
[356673175,1742940669149,-10969.8,0.00012876,2]
[356673176,1742940669158,-1115.76,0.00012876,2]
[356673177,1742940669168,-581.3,0.00012876,2]
[356673178,1742940669178,-103726.98,0.00012876,2]
[356673179,1742940669188,-578.43,0.00012876,2]
[356673180,1742940669198,-568.91,0.00012876,2]
[356673181,1742940669208,-500.0,0.00012876,2]
[356673182,1742940669217,-500.0,0.00012876,2]
[356673183,1742940669227,-500.0,0.00012876,2]
[356673184,1742940669238,-4158.75,0.00012876,2]
[356673185,1742940669248,-500.0,0.00012876,2]
[356673186,1742940669258,-1141.01,0.00012876,2]
[356673187,1742940669268,-2734.78,0.00012876,2]
[356673188,1742940669277,-500.0,0.00012876,2]
[356673189,1742940669287,-500.0,0.00012876,2]
[356673190,1742940669297,-500.0,0.00012876,2]
[356673191,1742940669307,-1309.59,0.00012876,2]
[356673192,1742940669317,-2068.14,0.00012876,2]
[356673193,1742940669327,-500.0,0.00012876,2]
[356673194,1742940669336,-5178.43,0.00012876,2]
[356673195,1742940669347,-1828.29,0.00012876,2]
[356673196,1742940669356,-500.0,0.00012876,2]
[356673197,1742940669366,-6147.84,0.00012876,2]
[356673198,1742940669376,-500.0,0.00012876,2]
[356673199,1742940669386,-500.0,0.00012876,2]
[356673200,1742940669395,-500.0,0.00012876,2]
[356673201,1742940669405,-2427.31,0.00012876,2]
[356673202,1742940669415,-527.1,0.00012876,2]
[356673203,1742940669426,-500.0,0.00012876,2]
[356673204,1742940669436,-882.86,0.00012876,2]
[356673205,1742940669446,-568.23,0.00012876,2]
[356673206,1742940669455,-7679.91,0.00012876,2]
[356673207,1742940669465,-668.75,0.00012876,2]
[356673208,1742940669475,-1324.57,0.00012876,2]
[356673209,1742940669485,-159.38151616,0.00012876,2]
[356673210,1742940669495,-500.0,0.00012876,2]
[356673211,1742940669504,-500.0,0.00012876,2]
[356673212,1742940669514,-3036.54,0.00012876,2]
[356673213,1742940669524,-500.0,0.00012876,2]
[356673214,1742940669534,-722.44,0.00012876,2]
[356673215,1742940669543,-500.0,0.00012876,2]
[356673216,1742940669553,-2355.41,0.00012876,2]
[356673217,1742940669564,-518.08,0.00012876,2]
[356673218,1742940669578,-500.0,0.00012876,2]
[356673219,1742940669588,-660.47,0.00012876,2]
[356673220,1742940669597,-500.0,0.00012876,2]
[356673221,1742940669607,-500.0,0.00012876,2]
[356673222,1742940669616,-500.0,0.00012876,2]
[356673223,1742940669626,-500.0,0.00012876,2]
[356673224,1742940669636,-500.0,0.00012876,2]
[356673225,1742940669647,-500.0,0.00012876,2]
[356673226,1742940669656,-410.01558519,0.00012877,2]
[356673227,1742940669666,-36640.1499651,0.000129,2]
[356673228,1742940669676,-36640.14996482,0.000129,2]
[356673229,1742940669686,-410.01558519,0.00012932,2]
[356673230,1742940669696,-160.31519567,0.00012959,2]
[356673231,1742940669705,-410.01558519,0.00012986,2]
[356673232,1742940669715,-750523.36271742,0.00013,2]
[356673233,1742940669724,-249.8,0.00013,2]
[356673234,1742940669734,-1012.37502336,0.00013,10]
[356673235,1742940669743,-250.0,0.00013,2]
[356673236,1742940669752,-250.0,0.00013,2]
[356673237,1742940669762,-169.845839,0.00013,2]
[356673238,1742940669772,-169.845839,0.00013,2]
[356673239,1742940669781,-151.0,0.00013,2]
[356673240,1742940669791,-325.299698,0.00013,2]
[356673241,1742940669800,-325.299698,0.00013,2]
[356673242,1742940669810,-151.0,0.00013,2]
[356673243,1742940669820,-546.760311,0.00013,2]
[356673244,1742940669830,-546.760311,0.00013,2]
[356673245,1742940669840,-1412.63,0.00013,2]
[356673246,1742940669850,-494.0,0.00013,4]
[356673247,1742940669860,-250.0,0.00013,2]
[356673248,1742940669869,-250.0,0.00013,2]
[356673249,1742940669879,-500.0,0.00013026,2]
[356673250,1742940669888,-199.8,0.00013027,2]
[356673251,1742940669898,-500.0,0.00013027,2]
[356673252,1742940669908,-500.0,0.00013027,2]
[356673253,1742940669918,-500.0,0.00013027,2]
[356673254,1742940669928,-642.0,0.00013027,2]
[356673255,1742940669937,-500.0,0.00013027,2]
[356673256,1742940669947,-150.26,0.00013027,2]
[356673257,1742940669957,-150.26,0.00013027,2]
[356673258,1742940669966,-150.26,0.00013027,2]
[356673259,1742940669975,-784.0,0.00013027,2]
[356673260,1742940669985,-270.19361124,0.00013027,2]
[356673261,1742940669995,-500.0,0.00013027,2]
[356673262,1742940670005,-410.01558519,0.00013068,2]
[356673263,1742940670014,-410.01558519,0.00013123,2]
[356673264,1742940670023,-36640.14996482,0.00013141,2]
[356673265,1742940670033,-500.0,0.0001315,2]
[356673266,1742940670042,-172.26496616,0.0001315,2]
[356673267,1742940670051,-500.0,0.0001315,2]
[356673268,1742940670060,-500.0,0.0001315,2]
[356673269,1742940670069,-500.0,0.0001315,2]
[356673270,1742940670079,-500.0,0.0001315,2]
[356673271,1742940670088,-684.91,0.0001315,2]
[356673272,1742940670097,-500.0,0.0001315,2]
[356673273,1742940670107,-824.78,0.0001315,2]
[356673274,1742940670116,-898.44,0.0001315,2]
[356673275,1742940670126,-868.42,0.0001315,2]
[356673276,1742940670136,-886.5,0.0001315,2]
[356673277,1742940670145,-877.34,0.0001315,2]
[356673278,1742940670154,-1633.27,0.0001315,2]
[356673279,1742940670164,-871.35,0.0001315,2]
[356673280,1742940670173,-500.0,0.0001315,2]
[356673281,1742940670182,-500.0,0.0001315,2]
[356673282,1742940670192,-848.11,0.0001315,2]
[356673283,1742940670201,-711.15,0.0001315,2]
[356673284,1742940670210,-500.0,0.0001315,2]
[356673285,1742940670219,-169.845839,0.0001315,2]
[356673286,1742940670228,-500.0,0.0001315,2]
[356673287,1742940670238,-500.0,0.0001315,2]
[356673288,1742940670252,-169.845839,0.0001315,2]
[356673289,1742940670261,-500.0,0.0001315,2]
[356673290,1742940670270,-500.0,0.0001315,2]
[356673291,1742940670280,-500.0,0.0001315,2]
[356673292,1742940670289,-500.0,0.0001315,2]
[356673293,1742940670299,-500.0,0.0001315,2]
[356673294,1742940670308,-949.97,0.0001315,2]
[356673295,1742940670319,-1437.06,0.0001315,2]
[356673296,1742940670328,-500.0,0.0001315,2]
[356673297,1742940670340,-500.0,0.0001315,2]
[356673298,1742940670349,-574.21,0.0001315,2]
[356673299,1742940670358,-975.56,0.0001315,2]
[356673300,1742940670368,-1592.05,0.0001315,2]
[356673301,1742940670377,-500.0,0.0001315,2]
[356673302,1742940670390,-500.0,0.0001315,2]
[356673303,1742940670399,-500.0,0.0001315,2]
[356673304,1742940670408,-377.65,0.0001315,2]
[356673305,1742940670417,-2306.34,0.0001315,2]
[356673306,1742940670427,-151.0,0.0001315,2]
[356673307,1742940670436,-500.0,0.0001315,2]
[356673308,1742940670446,-500.0,0.0001315,2]
[356673309,1742940670455,-500.0,0.0001315,2]
[356673310,1742940670465,-500.0,0.0001315,2]
[356673311,1742940670474,-671.72,0.0001315,2]
[356673312,1742940670484,-325.299698,0.0001315,2]
[356673313,1742940670494,-325.2997,0.0001315,2]
[356673314,1742940670503,-151.0,0.0001315,2]
[356673315,1742940670512,-391.85,0.0001315,2]
[356673316,1742940670522,-546.760311,0.0001315,2]
[356673317,1742940670531,-500.0,0.0001315,2]
[356673318,1742940670540,-520.8,0.0001315,2]
[356673319,1742940670549,-546.760313,0.0001315,2]
[356673320,1742940670558,-500.0,0.0001315,2]
[356673321,1742940670569,-500.0,0.0001315,2]
[356673322,1742940670579,-530.87,0.0001315,2]
[356673323,1742940670588,-500.0,0.0001315,2]
[356673324,1742940670598,-500.0,0.0001315,2]
[356673325,1742940670608,-608.36,0.0001315,2]
[356673326,1742940670620,-987.75,0.0001315,2]
[356673327,1742940670629,-341.88,0.0001315,2]
[356673328,1742940670639,-773.2,0.0001315,2]
[356673329,1742940670651,-500.0,0.0001315,2]
[356673330,1742940670662,-519.65,0.0001315,2]
[356673331,1742940670671,-593.22,0.0001315,2]
[356673332,1742940670680,-500.0,0.0001315,2]
[356673333,1742940670689,-500.0,0.0001315,2]
[356673334,1742940670699,-500.0,0.0001315,2]
[356673335,1742940670708,-500.0,0.0001315,2]
[356673336,1742940670718,-500.0,0.0001315,2]
[356673337,1742940670727,-500.0,0.0001315,2]
[356673338,1742940670737,-500.0,0.0001315,2]
[356673339,1742940670747,-500.0,0.0001315,2]
[356673340,1742940670756,-500.0,0.0001315,2]
[356673341,1742940670766,-500.0,0.0001315,2]
[356673342,1742940670775,-500.0,0.0001315,2]
[356673343,1742940670785,-987.07,0.0001315,2]
[356673344,1742940670795,-500.0,0.0001315,2]
[356673345,1742940670804,-500.0,0.0001315,2]
[356673346,1742940670814,-500.0,0.0001315,2]
[356673347,1742940670823,-503.18,0.0001315,2]
[356673348,1742940670832,-2588.72,0.0001315,2]
[356673349,1742940670843,-635.13,0.0001315,2]
[356673350,1742940670852,-500.0,0.0001315,2]
[356673351,1742940670862,-7574.04,0.0001315,2]
[356673352,1742940670872,-706.39,0.0001315,2]
[356673353,1742940670881,-919.95,0.0001315,2]
[356673354,1742940670891,-500.0,0.0001315,2]
[356673355,1742940670900,-177.68530644,0.0001315,2]
[356673356,1742940670910,-508.28678808,0.0001315,2]
[356673357,1742940670919,-835.22,0.0001315,2]
[356673358,1742940670929,-500.0,0.0001315,2]
[356673359,1742940670939,-500.0,0.0001315,2]
[356673360,1742940670949,-821.98,0.0001315,2]
[356673361,1742940670959,-1269.14,0.0001315,2]
[356673362,1742940670968,-3195.43,0.0001315,2]
[356673363,1742940670978,-2353.49,0.0001315,2]
[356673364,1742940670988,-500.0,0.0001315,2]
[356673365,1742940670997,-4463.96,0.0001315,2]
[356673366,1742940671007,-712.38,0.0001315,2]
[356673367,1742940671017,-5474.58,0.0001315,2]
[356673368,1742940671027,-500.0,0.0001315,2]
[356673369,1742940671037,-5190.69,0.0001315,2]
[356673370,1742940671046,-500.0,0.0001315,2]
[356673371,1742940671164,-1492.31,0.0001315,2]
[356673372,1742940671174,-15419.73,0.0001315,2]
[356673373,1742940671184,-500.0,0.0001315,2]
[356673374,1742940671194,-3644.62,0.0001315,2]
[356673375,1742940671204,-1533.82,0.0001315,2]
[356673376,1742940671214,-500.0,0.0001315,2]
[356673377,1742940671223,-500.0,0.0001315,2]
[356673378,1742940671233,-500.0,0.0001315,2]
[356673379,1742940671243,-3706.87,0.0001315,2]
[356673380,1742940671252,-500.0,0.0001315,2]
[356673381,1742940671262,-961.87,0.0001315,2]
[356673382,1742940671271,-1104.44,0.0001315,2]
[356673383,1742940671281,-579.63,0.0001315,2]
[356673384,1742940671290,-2129.68,0.0001315,2]
[356673385,1742940671300,-7244.39,0.0001315,2]
[356673386,1742940671309,-500.0,0.0001315,2]
[356673387,1742940671319,-500.0,0.0001315,2]
[356673388,1742940671329,-9523.56,0.0001315,2]
[356673389,1742940671339,-500.0,0.0001315,2]
[356673390,1742940671348,-10969.8,0.0001315,2]
[356673391,1742940671358,-1115.76,0.0001315,2]
[356673392,1742940671367,-103726.98,0.0001315,2]
[356673393,1742940671377,-568.91,0.0001315,2]
[356673394,1742940671387,-500.0,0.0001315,2]
[356673395,1742940671396,-556.16,0.0001315,2]
[356673396,1742940671406,-500.0,0.0001315,2]
[356673397,1742940671415,-4158.75,0.0001315,2]
[356673398,1742940671425,-1141.01,0.0001315,2]
[356673399,1742940671435,-2734.78,0.0001315,2]
[356673400,1742940671444,-500.0,0.0001315,2]
[356673401,1742940671454,-500.0,0.0001315,2]
[356673402,1742940671463,-500.0,0.0001315,2]
[356673403,1742940671472,-1309.59,0.0001315,2]
[356673404,1742940671482,-2068.14,0.0001315,2]
[356673405,1742940671491,-500.0,0.0001315,2]
[356673406,1742940671501,-5178.43,0.0001315,2]
[356673407,1742940671510,-1828.29,0.0001315,2]
[356673408,1742940671519,-500.0,0.0001315,2]
[356673409,1742940671529,-6147.84,0.0001315,2]
[356673410,1742940671538,-500.0,0.0001315,2]
[356673411,1742940671548,-500.0,0.0001315,2]
[356673412,1742940671557,-2427.31,0.0001315,2]
[356673413,1742940671571,-500.0,0.0001315,2]
[356673414,1742940671580,-882.86,0.0001315,2]
[356673415,1742940671590,-568.23,0.0001315,2]
[356673416,1742940671599,-7679.91,0.0001315,2]
[356673417,1742940671611,-668.75,0.0001315,2]
[356673418,1742940671620,-1324.57,0.0001315,2]
[356673419,1742940671630,-500.0,0.0001315,2]
[356673420,1742940671639,-606.57,0.0001315,2]
[356673421,1742940671651,-3036.54,0.0001315,2]
[356673422,1742940671663,-500.0,0.0001315,2]
[356673423,1742940671672,-722.44,0.0001315,2]
[356673424,1742940671682,-500.0,0.0001315,2]
[356673425,1742940671692,-2355.41,0.0001315,2]
[356673426,1742940671701,-518.08,0.0001315,2]
[356673427,1742940671711,-500.0,0.0001315,2]
[356673428,1742940671720,-660.47,0.0001315,2]
[356673429,1742940671729,-500.0,0.0001315,2]
[356673430,1742940671739,-500.0,0.0001315,2]
[356673431,1742940671749,-500.0,0.0001315,2]
[356673432,1742940671758,-500.0,0.0001315,2]
[356673433,1742940671768,-500.0,0.0001315,2]
[356673434,1742940671780,-500.0,0.0001315,2]
[356673435,1742940671790,-3000.0,0.0001315,2]
[356673436,1742940671800,-765.25568133,0.00013151,2]
[356673437,1742940671809,-500.0,0.00013164,2]
[356673438,1742940671820,-500.0,0.00013164,2]
[356673439,1742940671830,-500.0,0.00013164,2]
[356673440,1742940671840,-642.0,0.00013164,2]
[356673441,1742940671850,-500.0,0.00013164,2]
[356673442,1742940671859,-150.26,0.00013164,2]
[356673443,1742940671869,-784.0,0.00013164,2]
[356673444,1742940671879,-500.0,0.00013164,2]
[356673445,1742940671888,-410.01558519,0.00013178,2]
[356673446,1742940671898,-587.0,0.00013232,2]
[356673447,1742940671907,-410.01558519,0.00013233,2]
[356673448,1742940671916,-728.0307,0.00013301,2]
[356673449,1742940671926,-873.92432188,0.00013301,2]
[356673450,1742940671936,-500.0,0.00013301,2]
[356673451,1742940671945,-642.0,0.00013301,2]
[356673452,1742940671954,-500.0,0.00013301,2]